[Event "Live Chess"]
[Site "Chess.com"]
[Date "2024.06.01"]
[Round "-"]
[White "LL220284LL"]
[Black "blunderabit"]
[Result "1-0"]
[WhiteElo "2531"]
[BlackElo "1801"]
[TimeControl "300"]
[EndTime "14:56:22 PDT"]
[Termination "LL220284LL won by resignation"]

1. Nf3 {[%clk 0:04:56.6]} 1... g6 {[%clk 0:04:54.4]} 2. g3 {[%clk 0:04:51.2]}
2... Bg7 {[%clk 0:04:51.8]} 3. Bg2 {[%clk 0:04:40.9]} 3... e5 {[%clk 0:04:50.2]}
4. d3 {[%clk 0:04:39]} 4... d6 {[%clk 0:04:48.5]} 5. O-O {[%clk 0:04:35]} 5...
f5 {[%clk 0:04:46.4]} 6. c4 {[%clk 0:04:33.3]} 6... Nf6 {[%clk 0:04:44.5]} 7.
Nc3 {[%clk 0:04:31.9]} 7... c6 {[%clk 0:04:41.6]} 8. Rb1 {[%clk 0:04:30.9]} 8...
a5 {[%clk 0:04:40.2]} 9. a3 {[%clk 0:04:28.5]} 9... O-O {[%clk 0:04:31]} 10. Bd2
{[%clk 0:04:26.8]} 10... Kh8 {[%clk 0:04:26.1]} 11. b4 {[%clk 0:04:16.7]} 11...
axb4 {[%clk 0:04:23.9]} 12. axb4 {[%clk 0:04:16.6]} 12... Qe8 {[%clk 0:03:59.7]}
13. Ne1 {[%clk 0:04:12.6]} 13... Nbd7 {[%clk 0:03:54.4]} 14. Nc2 {[%clk
0:03:55]} 14... e4 {[%clk 0:03:39.2]} 15. dxe4 {[%clk 0:03:43.1]} 15... Nxe4
{[%clk 0:03:34.5]} 16. Nxe4 {[%clk 0:03:37.9]} 16... fxe4 {[%clk 0:03:33.2]} 17.
Be3 {[%clk 0:03:36.8]} 17... Nf6 {[%clk 0:03:30.3]} 18. Qxd6 {[%clk 0:03:32.9]}
18... Qf7 {[%clk 0:03:15]} 19. c5 {[%clk 0:03:24.2]} 19... Ra2 {[%clk
0:03:08.4]} 20. Qd1 {[%clk 0:03:09.5]} 20... Nd5 {[%clk 0:02:58.1]} 21. Bd4
{[%clk 0:03:06.7]} 21... Bf5 {[%clk 0:02:38.2]} 22. Ra1 {[%clk 0:02:57.6]} 22...
Rfa8 {[%clk 0:02:27.6]} 23. Bxg7+ {[%clk 0:02:51.5]} 23... Qxg7 {[%clk
0:02:24.5]} 24. Rxa2 {[%clk 0:02:50]} 24... Rxa2 {[%clk 0:02:22.8]} 25. Ne3
{[%clk 0:02:45.2]} 25... Nc3 {[%clk 0:01:59]} 26. Nxf5 {[%clk 0:02:36.3]} 26...
gxf5 {[%clk 0:01:42.2]} 27. Qd8+ {[%clk 0:02:34.9]} 27... Qg8 {[%clk 0:01:40.3]}
28. Qf6+ {[%clk 0:02:33]} 28... Qg7 {[%clk 0:01:38.8]} 29. Qxf5 {[%clk
0:02:31.7]} 29... Nxe2+ {[%clk 0:01:29.6]} 30. Kh1 {[%clk 0:02:30.9]} 30... Nc3
{[%clk 0:01:09.5]} 31. Qc8+ {[%clk 0:02:25.5]} 31... Qg8 {[%clk 0:01:05.9]} 32.
Qxb7 {[%clk 0:02:24.5]} 32... Qd5 {[%clk 0:01:00.9]} 33. Qc8+ {[%clk 0:02:18.5]}
33... Kg7 {[%clk 0:00:59.3]} 34. Qg4+ {[%clk 0:02:16.9]} 34... Kf8 {[%clk
0:00:54.7]} 35. Qf4+ {[%clk 0:02:13.9]} 35... Ke7 {[%clk 0:00:52.7]} 36. Qh6
{[%clk 0:02:08]} 36... Rd2 {[%clk 0:00:41.4]} 37. Qg7+ {[%clk 0:02:05.8]} 1-0

[Event "Live Chess"]
[Site "Chess.com"]
[Date "2024.06.01"]
[Round "-"]
[White "ACM42"]
[Black "FlyingChessKestrel13"]
[Result "0-1"]
[WhiteElo "2161"]
[BlackElo "2078"]
[TimeControl "300"]
[EndTime "14:56:32 PDT"]
[Termination "FlyingChessKestrel13 won by resignation"]

1. e4 {[%clk 0:04:55.8]} 1... e5 {[%clk 0:04:59.2]} 2. Nf3 {[%clk 0:04:54.8]}
2... Nf6 {[%clk 0:04:58.2]} 3. Nxe5 {[%clk 0:04:53.2]} 3... d6 {[%clk
0:04:56.6]} 4. Nf3 {[%clk 0:04:51.8]} 4... Nxe4 {[%clk 0:04:56.3]} 5. d3 {[%clk
0:04:51.3]} 5... Nf6 {[%clk 0:04:55.5]} 6. d4 {[%clk 0:04:50.8]} 6... d5 {[%clk
0:04:54.7]} 7. Bd3 {[%clk 0:04:50.3]} 7... Bd6 {[%clk 0:04:53.2]} 8. O-O {[%clk
0:04:49.8]} 8... O-O {[%clk 0:04:52.3]} 9. h3 {[%clk 0:04:49.2]} 9... c6 {[%clk
0:04:49.6]} 10. Nbd2 {[%clk 0:04:47.5]} 10... Nbd7 {[%clk 0:04:48.9]} 11. b3
{[%clk 0:04:46.8]} 11... Re8 {[%clk 0:04:48.4]} 12. c4 {[%clk 0:04:45.4]} 12...
Nf8 {[%clk 0:04:47.5]} 13. Re1 {[%clk 0:04:42.8]} 13... Ne6 {[%clk 0:04:46.4]}
14. Bb2 {[%clk 0:04:41.4]} 14... Nf4 {[%clk 0:04:45.4]} 15. Bf1 {[%clk
0:04:37.3]} 15... Bf5 {[%clk 0:04:41.6]} 16. Ne5 {[%clk 0:04:34.8]} 16... Bxe5
{[%clk 0:04:38.1]} 17. dxe5 {[%clk 0:04:33.2]} 17... Ne4 {[%clk 0:04:37.6]} 18.
Nxe4 {[%clk 0:04:29.6]} 18... Bxe4 {[%clk 0:04:36.2]} 19. g3 {[%clk 0:03:56.5]}
19... Ng6 {[%clk 0:04:22.5]} 20. f3 {[%clk 0:03:55.3]} 20... Bf5 {[%clk
0:04:19.7]} 21. g4 {[%clk 0:03:54.6]} 21... Bd7 {[%clk 0:04:18.4]} 22. cxd5
{[%clk 0:03:49.2]} 22... cxd5 {[%clk 0:04:16.8]} 23. Qxd5 {[%clk 0:03:47]} 23...
Qe7 {[%clk 0:04:12.1]} 24. Rad1 {[%clk 0:03:40]} 24... Bc6 {[%clk 0:04:10.3]}
25. Qd3 {[%clk 0:03:23.1]} 25... Qh4 {[%clk 0:04:05.7]} 26. Qe3 {[%clk 0:03:09]}
26... Qg3+ {[%clk 0:04:01.1]} 27. Kh1 {[%clk 0:02:48.8]} 27... Bxf3+ {[%clk
0:03:56.6]} 0-1

[Event "Live Chess"]
[Site "Chess.com"]
[Date "2024.06.01"]
[Round "-"]
[White "JohanKjeldahl"]
[Black "BishopofWells"]
[Result "1-0"]
[WhiteElo "1881"]
[BlackElo "1551"]
[TimeControl "300"]
[EndTime "14:56:40 PDT"]
[Termination "JohanKjeldahl won by resignation"]

1. e4 {[%clk 0:04:56.9]} 1... e6 {[%clk 0:04:58.4]} 2. d4 {[%clk 0:04:55.3]}
2... d5 {[%clk 0:04:57.3]} 3. Nd2 {[%clk 0:04:53.2]} 3... Nf6 {[%clk 0:04:55.2]}
4. e5 {[%clk 0:04:51.5]} 4... Nfd7 {[%clk 0:04:54.5]} 5. Bd3 {[%clk 0:04:50.5]}
5... c5 {[%clk 0:04:53.6]} 6. c3 {[%clk 0:04:49.6]} 6... Qb6 {[%clk 0:04:52]} 7.
Ne2 {[%clk 0:04:47.7]} 7... Nc6 {[%clk 0:04:50.7]} 8. Nf3 {[%clk 0:04:43.9]}
8... cxd4 {[%clk 0:04:46]} 9. cxd4 {[%clk 0:04:42.7]} 9... Bb4+ {[%clk
0:04:44.5]} 10. Kf1 {[%clk 0:04:41.7]} 10... h6 {[%clk 0:04:38.5]} 11. a3 {[%clk
0:04:40.3]} 11... Be7 {[%clk 0:04:36.3]} 12. b4 {[%clk 0:04:39.3]} 12... O-O
{[%clk 0:04:33.3]} 13. Be3 {[%clk 0:04:36.2]} 13... a6 {[%clk 0:04:30.9]} 14.
Rc1 {[%clk 0:04:33.3]} 14... Qd8 {[%clk 0:04:16.3]} 15. h4 {[%clk 0:04:30.9]}
15... f6 {[%clk 0:04:04.4]} 16. exf6 {[%clk 0:04:24.7]} 16... Bxf6 {[%clk
0:03:54.9]} 17. Nf4 {[%clk 0:04:21.3]} 17... Qe8 {[%clk 0:03:22.4]} 18. Bg6
{[%clk 0:04:14.6]} 18... Qe7 {[%clk 0:03:18.6]} 19. Qd3 {[%clk 0:04:02.8]} 19...
e5 {[%clk 0:03:10.7]} 20. Bh7+ {[%clk 0:03:59.9]} 20... Kh8 {[%clk 0:02:50.2]}
21. Ng6+ {[%clk 0:03:58.8]} 21... Kxh7 {[%clk 0:02:47.3]} 22. Nxe7+ {[%clk
0:03:57.5]} 22... Kh8 {[%clk 0:02:45.7]} 23. Ng6+ {[%clk 0:03:51.3]} 23... Kg8
{[%clk 0:02:44.8]} 24. dxe5 {[%clk 0:03:48.8]} 24... Rf7 {[%clk 0:02:30.2]} 25.
e6 {[%clk 0:03:44.6]} 25... Nde5 {[%clk 0:02:20.5]} 26. exf7+ {[%clk 0:03:42.4]}
26... Kxf7 {[%clk 0:02:20.1]} 27. Qxd5+ {[%clk 0:03:40.4]} 27... Be6 {[%clk
0:02:17.4]} 28. Ngxe5+ {[%clk 0:03:36.1]} 28... Ke7 {[%clk 0:02:10.1]} 29. Nxc6+
{[%clk 0:03:29.3]} 29... bxc6 {[%clk 0:02:06.3]} 30. Qc5+ {[%clk 0:03:23.4]}
30... Kf7 {[%clk 0:02:01.1]} 31. Qxc6 {[%clk 0:03:22.1]} 31... Rc8 {[%clk
0:01:57.4]} 32. Qb7+ {[%clk 0:03:20.6]} 32... Kg6 {[%clk 0:01:51]} 33. Rxc8
{[%clk 0:03:19.2]} 1-0

[Event "Live Chess"]
[Site "Chess.com"]
[Date "2024.06.01"]
[Round "-"]
[White "MagnersCarlsberg2870"]
[Black "koekoekoe"]
[Result "1-0"]
[WhiteElo "1763"]
[BlackElo "1995"]
[TimeControl "300"]
[EndTime "14:57:00 PDT"]
[Termination "MagnersCarlsberg2870 won by checkmate"]

1. Nf3 {[%clk 0:04:55.4]} 1... d5 {[%clk 0:04:59.9]} 2. e4 {[%clk 0:04:54]} 2...
dxe4 {[%clk 0:04:58.8]} 3. Ng5 {[%clk 0:04:52.5]} 3... Nf6 {[%clk 0:04:58.4]} 4.
d3 {[%clk 0:04:51.7]} 4... exd3 {[%clk 0:04:56.9]} 5. Bxd3 {[%clk 0:04:50.8]}
5... Nc6 {[%clk 0:04:55.8]} 6. Nc3 {[%clk 0:04:49.2]} 6... Bg4 {[%clk
0:04:52.7]} 7. f3 {[%clk 0:04:46.5]} 7... Bh5 {[%clk 0:04:51.1]} 8. Bf4 {[%clk
0:04:39.2]} 8... e5 {[%clk 0:04:45.5]} 9. Qe2 {[%clk 0:04:37.3]} 9... Bd6 {[%clk
0:04:44.8]} 10. O-O-O {[%clk 0:04:35]} 10... O-O {[%clk 0:04:43.2]} 11. g4
{[%clk 0:04:31.2]} 11... exf4 {[%clk 0:04:33]} 12. gxh5 {[%clk 0:04:29.8]} 12...
Nxh5 {[%clk 0:04:32.6]} 13. Rhg1 {[%clk 0:04:24.2]} 13... Nf6 {[%clk 0:04:20.9]}
14. Nce4 {[%clk 0:04:16.7]} 14... h6 {[%clk 0:04:01.5]} 15. Nxf6+ {[%clk
0:04:14.2]} 15... Qxf6 {[%clk 0:03:57.4]} 16. Ne4 {[%clk 0:04:04.2]} 16... Qd4
{[%clk 0:03:47.2]} 17. Qg2 {[%clk 0:03:56.3]} 17... Be5 {[%clk 0:03:40.8]} 18.
c3 {[%clk 0:03:52.5]} 18... Qe3+ {[%clk 0:03:33.6]} 19. Kb1 {[%clk 0:03:49.1]}
19... Rad8 {[%clk 0:03:32.6]} 20. Bc2 {[%clk 0:02:56.8]} 20... Rxd1+ {[%clk
0:03:24.8]} 21. Rxd1 {[%clk 0:02:53]} 21... Rd8 {[%clk 0:03:20.3]} 22. Rg1
{[%clk 0:02:45]} 22... f5 {[%clk 0:02:58]} 23. Bb3+ {[%clk 0:02:42.1]} 23... Kf8
{[%clk 0:02:47.8]} 24. Qg6 {[%clk 0:02:37.6]} 24... Qd3+ {[%clk 0:02:13.7]} 25.
Ka1 {[%clk 0:02:35.8]} 25... Qd7 {[%clk 0:02:13]} 26. Qh7 {[%clk 0:02:29.1]}
26... fxe4 {[%clk 0:02:08.6]} 27. Qg8+ {[%clk 0:02:23.2]} 27... Ke7 {[%clk
0:02:08]} 28. Qf7+ {[%clk 0:02:22]} 28... Kd6 {[%clk 0:02:03.9]} 29. Rd1+ {[%clk
0:02:20.8]} 29... Bd4 {[%clk 0:01:56.6]} 30. Qxf4+ {[%clk 0:02:19.2]} 30... Ke7
{[%clk 0:01:50.6]} 31. Qf7+ {[%clk 0:02:12.9]} 31... Kd6 {[%clk 0:01:49.4]} 32.
Qd5+ {[%clk 0:02:09]} 32... Ke7 {[%clk 0:01:47.3]} 33. Qxe4+ {[%clk 0:02:02.8]}
33... Kf8 {[%clk 0:01:45.9]} 34. Qf4+ {[%clk 0:01:55]} 34... Ke7 {[%clk
0:01:42.3]} 35. cxd4 {[%clk 0:01:46.4]} 35... Rf8 {[%clk 0:01:25.7]} 36. Qh4+
{[%clk 0:01:38.9]} 36... g5 {[%clk 0:01:22.1]} 37. Qxh6 {[%clk 0:01:36.7]} 37...
Qf5 {[%clk 0:01:13]} 38. Re1+ {[%clk 0:01:33.2]} 38... Kd8 {[%clk 0:01:12.3]}
39. d5 {[%clk 0:01:16.9]} 39... Nd4 {[%clk 0:01:08.3]} 40. d6 {[%clk 0:01:02.4]}
40... Qf6 {[%clk 0:00:51.2]} 41. dxc7+ {[%clk 0:00:57.5]} 41... Kc8 {[%clk
0:00:44.7]} 42. Qh3+ {[%clk 0:00:55.4]} 42... Kxc7 {[%clk 0:00:42.6]} 43. Rc1+
{[%clk 0:00:50.6]} 43... Nc6 {[%clk 0:00:42.2]} 44. Qg3+ {[%clk 0:00:47.3]}
44... Qf4 {[%clk 0:00:40.8]} 45. Qg1 {[%clk 0:00:39.9]} 45... Qxf3 {[%clk
0:00:34.6]} 46. Qc5 {[%clk 0:00:38.4]} 46... Qf5 {[%clk 0:00:31.2]} 47. Qe7+
{[%clk 0:00:35.3]} 47... Kb8 {[%clk 0:00:27.3]} 48. Qd6+ {[%clk 0:00:29]} 48...
Ka8 {[%clk 0:00:23.2]} 49. Be6 {[%clk 0:00:25.7]} 49... Qf4 {[%clk 0:00:20.1]}
50. Qc5 {[%clk 0:00:19.1]} 50... Qc7 {[%clk 0:00:16.1]} 51. Qxf8+ {[%clk
0:00:16.4]} 51... Nb8 {[%clk 0:00:14.6]} 52. Rxc7 {[%clk 0:00:13.9]} 52... a6
{[%clk 0:00:13.9]} 53. Rc8 {[%clk 0:00:12.8]} 53... Ka7 {[%clk 0:00:13.8]} 54.
Rxb8 {[%clk 0:00:11.9]} 54... Kb6 {[%clk 0:00:13.7]} 55. Qd8+ {[%clk 0:00:10.7]}
55... Kb5 {[%clk 0:00:12.9]} 56. Qd5+ {[%clk 0:00:09.7]} 56... Kb6 {[%clk
0:00:12.3]} 57. Qd6+ {[%clk 0:00:08.5]} 57... Ka5 {[%clk 0:00:12.2]} 58. Rxb7
{[%clk 0:00:07.5]} 58... Ka4 {[%clk 0:00:11.3]} 59. Qb4# {[%clk 0:00:06.3]} 1-0

[Event "Live Chess"]
[Site "Chess.com"]
[Date "2024.06.01"]
[Round "-"]
[White "f4nomore"]
[Black "BearFromUkraine"]
[Result "1-0"]
[WhiteElo "1253"]
[BlackElo "1038"]
[TimeControl "300"]
[EndTime "14:57:01 PDT"]
[Termination "f4nomore won by resignation"]

1. d4 {[%clk 0:04:54.6]} 1... d5 {[%clk 0:04:58.8]} 2. Nc3 {[%clk 0:04:52.5]}
2... Nc6 {[%clk 0:04:57.4]} 3. Nf3 {[%clk 0:04:49.9]} 3... Nf6 {[%clk
0:04:55.9]} 4. e3 {[%clk 0:04:47.4]} 4... a6 {[%clk 0:04:53.2]} 5. Be2 {[%clk
0:04:45.7]} 5... e6 {[%clk 0:04:51.8]} 6. O-O {[%clk 0:04:44.1]} 6... Bb4 {[%clk
0:04:49.9]} 7. Bd2 {[%clk 0:04:41.5]} 7... O-O {[%clk 0:04:47.4]} 8. a3 {[%clk
0:04:40.5]} 8... Bxc3 {[%clk 0:04:46.3]} 9. Bxc3 {[%clk 0:04:38.4]} 9... Bd7
{[%clk 0:04:44.8]} 10. Bd2 {[%clk 0:04:36.9]} 10... Re8 {[%clk 0:04:38.1]} 11.
h3 {[%clk 0:04:34.9]} 11... e5 {[%clk 0:04:35.9]} 12. dxe5 {[%clk 0:04:31.8]}
12... Nxe5 {[%clk 0:04:35]} 13. Nxe5 {[%clk 0:04:23.5]} 13... Rxe5 {[%clk
0:04:30.8]} 14. c4 {[%clk 0:04:21.8]} 14... dxc4 {[%clk 0:04:23.6]} 15. Bxc4
{[%clk 0:04:19.8]} 15... Re8 {[%clk 0:04:20.6]} 16. Qb3 {[%clk 0:04:16.2]} 16...
Be6 {[%clk 0:03:50]} 17. Bxe6 {[%clk 0:04:08.1]} 17... Rxe6 {[%clk 0:03:41.8]}
18. Bc3 {[%clk 0:04:02.1]} 18... b6 {[%clk 0:03:35.4]} 19. Rad1 {[%clk
0:03:59.7]} 19... Qc8 {[%clk 0:03:18.5]} 20. Rd3 {[%clk 0:03:49]} 20... Ne4
{[%clk 0:03:05.6]} 21. Rfd1 {[%clk 0:03:41.8]} 21... Rd6 {[%clk 0:02:50.9]} 22.
Rxd6 {[%clk 0:03:21.3]} 22... cxd6 {[%clk 0:02:43.7]} 23. Bd4 {[%clk 0:03:11.7]}
23... Nc5 {[%clk 0:02:27.8]} 24. Qd5 {[%clk 0:03:03.7]} 24... Qc7 {[%clk
0:02:14.2]} 25. Qxa8+ {[%clk 0:02:58.7]} 1-0

[Event "Live Chess"]
[Site "Chess.com"]
[Date "2024.06.01"]
[Round "-"]
[White "CCGoodKnightRookie"]
[Black "Pablo_dmp"]
[Result "1-0"]
[WhiteElo "2364"]
[BlackElo "2006"]
[TimeControl "300"]
[EndTime "14:57:17 PDT"]
[Termination "CCGoodKnightRookie won by resignation"]

1. d4 {[%clk 0:04:59.1]} 1... Nf6 {[%clk 0:04:58.4]} 2. Nc3 {[%clk 0:04:58.7]}
2... c5 {[%clk 0:04:57.4]} 3. d5 {[%clk 0:04:57.9]} 3... e6 {[%clk 0:04:56.3]}
4. e4 {[%clk 0:04:57.3]} 4... Be7 {[%clk 0:04:52.5]} 5. d6 {[%clk 0:04:55.6]}
5... Bf8 {[%clk 0:04:50.8]} 6. e5 {[%clk 0:04:54.7]} 6... Ng8 {[%clk 0:04:47.7]}
7. f4 {[%clk 0:04:53.9]} 7... f6 {[%clk 0:04:44.4]} 8. Bd3 {[%clk 0:04:52]} 8...
Nh6 {[%clk 0:04:25.8]} 9. Nb5 {[%clk 0:04:34.7]} 9... Na6 {[%clk 0:04:21]} 10.
Qh5+ {[%clk 0:04:29.9]} 10... g6 {[%clk 0:04:09]} 11. Qh3 {[%clk 0:04:13.1]}
11... f5 {[%clk 0:03:56.5]} 12. Nf3 {[%clk 0:04:09.8]} 12... b6 {[%clk
0:03:44.8]} 13. Be3 {[%clk 0:04:07.7]} 13... Bb7 {[%clk 0:03:43.2]} 14. Bf2
{[%clk 0:04:06]} 14... Rc8 {[%clk 0:03:39.7]} 15. Bh4 {[%clk 0:04:04.1]} 1-0

[Event "Live Chess"]
[Site "Chess.com"]
[Date "2024.06.01"]
[Round "-"]
[White "lestmak"]
[Black "LL220284LL"]
[Result "0-1"]
[WhiteElo "527"]
[BlackElo "2531"]
[TimeControl "300"]
[EndTime "14:57:54 PDT"]
[Termination "LL220284LL won by checkmate"]

1. e4 {[%clk 0:04:57.4]} 1... e5 {[%clk 0:04:58.4]} 2. Nf3 {[%clk 0:04:56.8]}
2... d5 {[%clk 0:04:58]} 3. Nxe5 {[%clk 0:04:47.2]} 3... dxe4 {[%clk 0:04:54.4]}
4. Qf3 {[%clk 0:04:44]} 4... exf3 {[%clk 0:04:53.1]} 5. d4 {[%clk 0:04:37.4]}
5... Qxd4 {[%clk 0:04:50.7]} 6. Nxf7 {[%clk 0:04:26.3]} 6... Kxf7 {[%clk
0:04:47.6]} 7. Bf4 {[%clk 0:04:19.7]} 7... Qxf4 {[%clk 0:04:45.9]} 8. Bc4+
{[%clk 0:04:17.5]} 8... Qxc4 {[%clk 0:04:43.6]} 9. gxf3 {[%clk 0:04:09]} 9...
Bb4+ {[%clk 0:04:41.2]} 10. Kd1 {[%clk 0:04:06.8]} 10... Nf6 {[%clk 0:04:40.4]}
11. Nd2 {[%clk 0:04:03.8]} 11... Rd8 {[%clk 0:04:38.9]} 12. b3 {[%clk
0:03:59.4]} 12... Rxd2+ {[%clk 0:04:37]} 13. Kc1 {[%clk 0:03:57.5]} 13... Qxc2#
{[%clk 0:04:36.1]} 0-1

[Event "Live Chess"]
[Site "Chess.com"]
[Date "2024.06.01"]
[Round "-"]
[White "NAZRIZ1977"]
[Black "gobbles19"]
[Result "1-0"]
[WhiteElo "2150"]
[BlackElo "2254"]
[TimeControl "300"]
[EndTime "14:58:00 PDT"]
[Termination "NAZRIZ1977 won on time"]

1. e4 {[%clk 0:04:56.2]} 1... Nf6 {[%clk 0:04:56.4]} 2. e5 {[%clk 0:04:51.9]}
2... Nd5 {[%clk 0:04:55.6]} 3. Nf3 {[%clk 0:04:51.3]} 3... d6 {[%clk 0:04:52.4]}
4. exd6 {[%clk 0:04:50.3]} 4... cxd6 {[%clk 0:04:51.8]} 5. d4 {[%clk 0:04:49.8]}
5... g6 {[%clk 0:04:50.7]} 6. Be2 {[%clk 0:04:48.4]} 6... Bg7 {[%clk 0:04:50.1]}
7. O-O {[%clk 0:04:47.1]} 7... O-O {[%clk 0:04:49.7]} 8. h3 {[%clk 0:04:46.6]}
8... Nc6 {[%clk 0:04:47.9]} 9. b3 {[%clk 0:04:44.5]} 9... e5 {[%clk 0:04:42]}
10. Bb2 {[%clk 0:04:38.9]} 10... e4 {[%clk 0:04:39.3]} 11. Ne1 {[%clk
0:04:35.1]} 11... e3 {[%clk 0:04:32.9]} 12. c4 {[%clk 0:04:24.6]} 12... exf2+
{[%clk 0:04:31.4]} 13. Rxf2 {[%clk 0:04:23.9]} 13... Ne3 {[%clk 0:04:29.1]} 14.
Qd2 {[%clk 0:04:21.5]} 14... Re8 {[%clk 0:04:20.7]} 15. d5 {[%clk 0:04:05.5]}
15... Bxb2 {[%clk 0:04:18.9]} 16. Qxb2 {[%clk 0:04:04.2]} 16... Ne5 {[%clk
0:04:16.8]} 17. Nc2 {[%clk 0:03:58.8]} 17... Nxc2 {[%clk 0:04:08.2]} 18. Qxc2
{[%clk 0:03:57.6]} 18... Bf5 {[%clk 0:04:06.6]} 19. Qd2 {[%clk 0:03:52]} 19...
Qh4 {[%clk 0:03:41.4]} 20. Nc3 {[%clk 0:03:47.4]} 20... a6 {[%clk 0:03:36]} 21.
Raf1 {[%clk 0:03:39.6]} 21... Re7 {[%clk 0:03:25.1]} 22. c5 {[%clk 0:03:17.8]}
22... Rd8 {[%clk 0:03:07.8]} 23. c6 {[%clk 0:03:13.5]} 23... bxc6 {[%clk
0:03:05.4]} 24. dxc6 {[%clk 0:03:12.6]} 24... Be6 {[%clk 0:02:38.4]} 25. Nd5
{[%clk 0:03:07.9]} 25... Bxd5 {[%clk 0:02:30.6]} 26. Qxd5 {[%clk 0:03:07.8]}
26... Rc8 {[%clk 0:02:13.3]} 27. Bxa6 {[%clk 0:03:01.3]} 27... Rxc6 {[%clk
0:02:12]} 28. Bc4 {[%clk 0:02:49.7]} 28... Rcc7 {[%clk 0:01:56.3]} 29. Bb5
{[%clk 0:02:31.8]} 29... Kg7 {[%clk 0:01:48.5]} 30. Qxd6 {[%clk 0:02:27.3]}
30... f5 {[%clk 0:01:39.8]} 31. Re2 {[%clk 0:02:05.2]} 31... Qg3 {[%clk
0:01:36.4]} 32. Qd4 {[%clk 0:01:57.6]} 32... Kf8 {[%clk 0:01:19.5]} 33. Qf2
{[%clk 0:01:47.2]} 33... Qc3 {[%clk 0:01:13.7]} 34. Rfe1 {[%clk 0:01:37.7]}
34... Rb7 {[%clk 0:01:05.3]} 35. a4 {[%clk 0:01:30.6]} 35... Rxb5 {[%clk
0:00:52.7]} 36. axb5 {[%clk 0:01:28.9]} 36... Nd3 {[%clk 0:00:51.5]} 37. Rxe7
{[%clk 0:01:12.2]} 37... Nxf2 {[%clk 0:00:49]} 38. Kxf2 {[%clk 0:01:11]} 38...
Qc5+ {[%clk 0:00:46.2]} 39. Kf3 {[%clk 0:01:00.2]} 39... Qxb5 {[%clk 0:00:41.5]}
40. R7e3 {[%clk 0:00:58.4]} 40... Qd5+ {[%clk 0:00:40]} 41. Kf2 {[%clk
0:00:57.5]} 41... Qd4 {[%clk 0:00:38.6]} 42. Kf1 {[%clk 0:00:56]} 42... Kg7
{[%clk 0:00:34.6]} 43. R3e2 {[%clk 0:00:53.1]} 43... h5 {[%clk 0:00:32.2]} 44.
Rb1 {[%clk 0:00:50.4]} 44... Qb4 {[%clk 0:00:29.7]} 45. Reb2 {[%clk 0:00:44.2]}
45... h4 {[%clk 0:00:25.7]} 46. Rc2 {[%clk 0:00:42.3]} 46... Kh6 {[%clk
0:00:22]} 47. Rc4 {[%clk 0:00:40]} 47... Qb5 {[%clk 0:00:21.1]} 48. Rc1 {[%clk
0:00:38.2]} 48... Qxb3 {[%clk 0:00:18.3]} 49. Rxh4+ {[%clk 0:00:35.7]} 49... Kg5
{[%clk 0:00:18]} 50. Rhc4 {[%clk 0:00:35.4]} 50... Qd3+ {[%clk 0:00:17.1]} 51.
Kg1 {[%clk 0:00:34.3]} 51... Qe3+ {[%clk 0:00:15.2]} 52. Kh1 {[%clk 0:00:32.2]}
52... f4 {[%clk 0:00:14.9]} 53. h4+ {[%clk 0:00:32.1]} 53... Kxh4 {[%clk
0:00:13.7]} 54. R4c3 {[%clk 0:00:29.1]} 54... Qe6 {[%clk 0:00:11.5]} 55. Rh3+
{[%clk 0:00:29]} 55... Kg4 {[%clk 0:00:10.3]} 56. Rf3 {[%clk 0:00:25.1]} 56...
Qg8 {[%clk 0:00:09.2]} 57. Rcf1 {[%clk 0:00:22.6]} 57... g5 {[%clk 0:00:08.6]}
58. Kg1 {[%clk 0:00:22.5]} 58... Qh7 {[%clk 0:00:08]} 59. Rd3 {[%clk 0:00:17.5]}
59... Qa7+ {[%clk 0:00:07.7]} 60. Kh1 {[%clk 0:00:15.4]} 60... Qa6 {[%clk
0:00:07.6]} 61. Rfd1 {[%clk 0:00:14.4]} 61... Qh6+ {[%clk 0:00:07.3]} 62. Kg1
{[%clk 0:00:14.3]} 62... Qe6 {[%clk 0:00:06.5]} 63. Kf1 {[%clk 0:00:14.2]} 63...
Qe2+ {[%clk 0:00:06.2]} 64. Kxe2 {[%clk 0:00:13.3]} 64... Kf5 {[%clk 0:00:05.3]}
65. Rf3 {[%clk 0:00:13.2]} 65... g4 {[%clk 0:00:05.2]} 66. Rf2 {[%clk
0:00:12.3]} 66... g3 {[%clk 0:00:04.5]} 67. Rf3 {[%clk 0:00:11.7]} 67... Kg4
{[%clk 0:00:04.4]} 68. Rdf1 {[%clk 0:00:11.6]} 68... Kf5 {[%clk 0:00:04.1]} 69.
Rxf4+ {[%clk 0:00:11.5]} 69... Ke5 {[%clk 0:00:04]} 70. R1f3 {[%clk 0:00:10.8]}
70... Kd5 {[%clk 0:00:03.9]} 71. Rxg3 {[%clk 0:00:10.2]} 71... Ke5 {[%clk
0:00:03.8]} 72. Ra4 {[%clk 0:00:09.5]} 72... Kf5 {[%clk 0:00:03.2]} 73. Rb3
{[%clk 0:00:09.1]} 73... Ke5 {[%clk 0:00:02.4]} 74. Rb5+ {[%clk 0:00:08.4]}
74... Kd6 {[%clk 0:00:01.4]} 75. Rh5 {[%clk 0:00:08.3]} 75... Kc6 {[%clk
0:00:01.3]} 76. Ra6+ {[%clk 0:00:07.7]} 76... Kb7 {[%clk 0:00:01.2]} 77. Rg6
{[%clk 0:00:07.1]} 77... Kc7 {[%clk 0:00:00.6]} 78. Rh7+ {[%clk 0:00:07]} 1-0